Cogmind - Beta 17 @@@ ROGUE MODE // 2026.06.23 @ 14:09:38 Player: Skergy Result: Destroyed by D-53 Grenadier with Mini Grenade Launcher Performance ------------- Evolutions (0) 0 Regions Visited (2) 400 Robots Destroyed (26) 130 Value Destroyed (489) 489 Prototype IDs (1) 20 Alien Tech Used (0) 0 Bonus (5800) 5800 TOTAL SCORE: 6839 Bonus ------- Prayed to X0-1V1 5000 Major X0-1V1 Interference 800 Cogmind --------- Core Integrity 0/170 Matter 645/700 Energy 88/100 System Corruption 2% Temperature Cool (0) Movement Walking (190) Ox1 Location -10/Mines Parts ------- > --- POWER (1) -------- (None) > --- PROPULSION (2) --- Light Treads Improved Aluminum Leg > --- UTILITY (2) ------ Large Storage Unit X0-1V1's Piety Tracker > --- WEAPON (2) ------- (None) > --- INVENTORY (15) --- Ion Engine Improved Aluminum Leg VTOL Module VTOL Module VTOL Module VTOL Module Structural Scanner Seismic Detector ECM Suite Shotgun Shotgun Improved Datajack Mining Laser Peak State ------------ > --- POWER ------------ Light Nuclear Core > --- PROPULSION ------- Light Treads Light Treads > --- UTILITY ---------- Large Storage Unit X0-1V1's Piety Tracker > --- WEAPON ----------- Shotgun Shotgun > --- INVENTORY -------- Ion Engine Improved Aluminum Leg Improved Aluminum Leg Improved Aluminum Leg Wheel Huge Storage Unit Structural Scanner Improved Terrain Scanner Seismic Detector Tractor Beam Field Recycling Unit Shotgun Shotgun Datajack Mining Laser [Rating: 25] Favorites ----------- Power Light Nuclear Core Engine Ion Engine Power Core Light Nuclear Core Propulsion Light Treads Treads Light Treads Leg Improved Aluminum Leg Wheel Wheel Utility Large Storage Unit Device X0-1V1's Piety Tracker Storage Large Storage Unit Weapon Light EM Pulse Cannon Energy Gun Medium Laser Energy Cannon Light EM Pulse Cannon Ballistic Gun Shotgun Special Weapon Mining Laser Build | -11 -10 -10 ------- Run | Yrd Mat Min Slots Evolved . | . . . Power . | . . . Propulsion . | . . . Utility . | . . . Weapon . | . . . Parts Attached 22 | 7 12 3 Power 4 | 1 2 1 Engine 3 | 1 1 1 Core 1 | . 1 . Reactor . | . . . Propulsion 5 | 2 2 1 Treads 3 | 2 1 . Leg 1 | . . 1 Wheel 1 | . 1 . Hover . | . . . Flight . | . . . Utility 6 | 2 4 . Device 3 | 1 2 . Storage 3 | 1 2 . Processor . | . . . Hackware . | . . . Protection . | . . . Artifact . | . . . Weapon 7 | 2 4 1 Energy Gun 2 | 2 . . Energy Cannon 2 | . 2 . Ballistic Gun 2 | . 2 . Ballistic Cannon . | . . . Launcher . | . . . Special Weapon 1 | . . 1 Impact Weapon . | . . . Slashing Weapon . | . . . Piercing Weapon . | . . . Special Melee Weapon . | . . . Unidentified Prototypes 1 | . 1 . Parts Lost 7 | . 2 5 Power 2 | . 1 1 Propulsion 2 | . . 2 Utility 1 | . 1 . Weapon 2 | . . 2 Highest Loss Streak 5 | . 1 5 To Critical Strikes . | . . . Average Backups 13 | 4 12 14 Power . | . . 1 Propulsion 5 | 2 4 6 Utility 3 | . 4 3 Weapon 2 | 1 2 3 Tool/Special . | . . . Unused Backups 20 | . 8 12 Power 2 | . 1 1 Propulsion 8 | . 3 5 Utility 5 | . 3 2 Weapon 3 | . 1 2 Tool/Special 2 | . . 2 Average Slot Usage (%) 99 | . 98 99 Engine 9 | . 8 10 Core 4 | . 5 2 Treads 27 | . 26 27 Device 13 | . 13 14 Storage 14 | . 14 14 Energy Gun 6 | . 9 . Energy Cannon 12 | . 6 26 Ballistic Gun 8 | . 11 . Peak Build Rating 25 | 8 25 25 Average Rating 17 | 5 15 24 On Entrance 11 | . 8 25 Avg Prop Armor Cover (%) 14 | . 13 21 Naked Turns . | . . . Heaviest Build 90 | 13 90 34 Greatest Support 40 | 40 40 40 Greatest Overweight (x) 8 | 2 8 2 Average Overweight (x) . | . . . Largest Inventory Capacity 25 | 8 25 15 Average Capacity 14 | 7 15 15 Most Carried 15 | 8 15 15 Average Carried 13 | 5 13 14 Final Capacity 15 | 8 15 15 Final Carried 15 | 8 15 13 Class Distribution -------------------- 100% | Mutant Dominant Class ---------------- Mutant | -10/Materials Mutant | -10/Mines Resources | -11 -10 -10 ----------- Run | Yrd Mat Min Matter Collected 995 | 270 211 514 Remotely . | . . . Salvage Created 678 | 112 504 62 Parts 44 | 13 22 9 Haulers Intercepted . | . . . Recyclers Shooed . | . . . Parts Field Recycled . | . . . Retrieved Matter . | . . . Parts Self-Destructed . | . . . Prevented . | . . . Parts Restored . | . . . Kills | -11 -10 -10 ------- Run | Yrd Mat Min Combat Hostiles Destroyed 16 | . 12 4 Guns 12 | . 12 . Cannons 4 | . . 4 Classes Destroyed 8 | 2 6 . Worker 1 | . 1 . Builder 1 | . 1 . Tunneler 3 | 3 . . Recycler 2 | 1 1 . Operator 1 | . 1 . Watcher 2 | . 2 . Swarmer 7 | . 3 4 Grunt 9 | . 9 . Best Kill Streak 7 | 4 7 4 Combat Bots Only 6 | . 6 4 Max Kills in Single Turn 2 | 2 2 1 Gunslinging . | . . . Exploded . | . . . Melee . | . . . Uniques/NPCs Destroyed . | . . . Combat | -11 -10 -10 -------- Run | Yrd Mat Min Hostile Shots Fired 95 | . 70 25 Missed 15 | . 13 2 Hits 80 | . 57 23 Projectile 80 | . 57 23 AOE 11 | . . 11 Damage Taken 1186 | . 628 558 Core 253 | . 110 143 Absorbed by Shields . | . . . Core Remaining (%) 100 | 100 . . Volleys Fired 63 | 7 44 12 Largest 2 | 2 2 2 Hottest 112 | 100 100 112 Shots Fired 116 | 14 89 13 Gun 102 | 14 88 . Cannon 12 | . 1 11 Launcher . | . . . Special 2 | . . 2 Kinetic 46 | . 46 . Thermal 58 | 14 42 2 Explosive . | . . . Electromagnetic 12 | . 1 11 Robot Hit Streak 11 | 4 11 5 Robot Miss Streak 3 | 2 3 1 Penetration Max . | . . . Secondary Targets 1 | . 1 . Max Gunslinging Chain 1 | . 1 . Shots Hit Robots 80 | 9 63 8 Core Hits 38 | 5 29 4 Critical Kills . | . . . Critical Parts Destroyed . | . . . Critical Strikes 5 | 1 2 2 Burn 3 | 1 2 . Corrupt 2 | . . 2 Melee Attacks . | . . . Impact . | . . . Slashing . | . . . Piercing . | . . . Sneak Attacks . | . . . Combat Hostiles . | . . . Follow-up Attacks . | . . . Damage Inflicted 1162 | 113 899 150 Guns 1012 | 113 899 . Cannons 150 | . . 150 Explosions . | . . . Melee . | . . . Ramming . | . . . Kinetic 570 | . 570 . Thermal 442 | 113 329 . Explosive . | . . . Electromagnetic 150 | . . 150 Impact . | . . . Slashing . | . . . Piercing . | . . . Highest Corruption 2 | . 2 2 Average Corruption 2 | . 2 2 Corruption Purged . | . . . Corruption Blocked . | . . . Effects 21 | . 12 9 Message Errors 5 | . 4 1 Matter Fused 5 | . 4 1 Heat Flow Errors 3 | . 2 1 Energy Discharges 4 | . 1 3 Data Loss (minor) 3 | . 1 2 Weapon Failures 1 | . . 1 Overload Shots . | . . . Overflow Damage . | . . . Projectiles . | . . . Explosions . | . . . Melee . | . . . Knockbacks . | . . . Impact . | . . . Kinetic . | . . . Secondary . | . . . Self-Inflicted Damage . | . . . Shots . | . . . Rammed . | . . . Targets Rammed . | . . . Kicked . | . . . Crushed . | . . . Highest Temperature 354 | 138 354 281 Average Temperature 82 | 68 81 94 Received Heat Transfer 285 | . 285 . Siege Activations . | . . . Martial Activations . | . . . Shielding Activations . | . . . Robots Disrupted . | . . . Combat Hostiles . | . . . Robots Corrupted . | . . . Combat Hostiles . | . . . Parts Fried . | . . . Impact Corruptions . | . . . Robots Melted 1 | . 1 . Combat Hostiles . | . . . Parts Melted 1 | . 1 . Heat Transferred 1517 | 407 1110 . Parts Sabotaged . | . . . Parts Stolen . | . . . Parts Stripped . | . . . Power Chain Reactions . | . . . Alert | -11 -10 -10 ------- Run | Yrd Mat Min Maximum Alert Level . | . . . Low Security (%) 100 | 100 100 100 Level 1 . | . . . Level 2 . | . . . Level 3 . | . . . Level 4 . | . . . Level 5 . | . . . High Security . | . . . Max Security . | . . . Peak Influence 143 | 15 143 70 Initial 9 | . . 9 Average 27 | 2 37 11 Influence Increases 485 | 20 353 112 Destroy 0b10 Robot/C 320 | . 240 80 Destroy 0b10 Robot/NC 50 | 20 30 . Destroy Leader 44 | . 44 . Successful Hack 22 | . 22 . Destroy Structure 4 | . 2 2 Lose Combat Pursuer 45 | . 15 30 Influence Decreases 485 | 20 327 138 Entered New Map 17 | . . 17 Time Decay 458 | 20 317 121 Lost Part 10 | . 10 . Squads Dispatched 3 | . 2 1 Investigation 2 | . 1 1 Extermination . | . . . Reinforcement 1 | . 1 . Assault . | . . . Garrison . | . . . Intercept . | . . . Searches Triggered . | . . . Construction Impeded . | . . . Haulers Reinforced . | . . . Active Scanning Responses . | . . . Cargo Convoy Interrupts . | . . . Stealth | -11 -10 -10 --------- Run | Yrd Mat Min Distress Signals . | . . . Communications Jammed . | . . . Distress Signals . | . . . Times Spotted 26 | . 18 8 Peak Tracking Total 7 | . 7 4 Tactical Retreats 2 | . 1 1 Traps | -11 -10 -10 ------- Run | Yrd Mat Min Traps Triggered 1 | . 1 . Indirectly . | . . . Trap Hack Attempts . | . . . Triggered . | . . . Disarmed . | . . . Reprogrammed . | . . . Reused . | . . . Traps Extracted . | . . . Installed . | . . . Triggered . | . . . Machines | -11 -10 -10 ---------- Run | Yrd Mat Min Machines Disabled . | . . . Max in Single Turn . | . . . Machines Repaired . | . . . Machines Dismantled . | . . . Machines Sabotaged . | . . . Overloaded Fab Kills . | . . . Hacking | -11 -10 -10 --------- Run | Yrd Mat Min Machines Accessed 8 | . 6 2 Terminals 6 | . 5 1 Fabricators . | . . . Repair Stations . | . . . Recycling Units 1 | . 1 . Scanalyzers . | . . . Garrison Access . | . . . Total Hacks 22 | . 19 3 Successful 10 | . 9 1 Failed 12 | . 10 2 Catastrophic . | . . . Database Lockouts . | . . . Manual 16 | . 15 1 Terminals 18 | . 16 2 Fabricators . | . . . Repair Stations . | . . . Recycling Units 3 | . 3 . Scanalyzers . | . . . Garrison Access . | . . . Terminal Hacks 4 | . 3 1 Open Door 1 | . . 1 Locate Traps 1 | . 1 . Hauler Manifests 1 | . 1 . Registered Components 1 | . 1 . Fabricator Hacks . | . . . Repair Station Hacks . | . . . Recycling Unit Hacks . | . . . Scanalyzer . | . . . Garrison Access Hacks . | . . . Unauthorized Hacks 6 | . 6 . Terminals 5 | . 5 . Track 2 | . 2 . Botnet 2 | . 2 . Operators 1 | . 1 . Fabricators . | . . . Repair Stations . | . . . Recycling Units 1 | . 1 . Recyclers 1 | . 1 . Scanalyzers . | . . . Garrison Access . | . . . Data Cores Recovered . | . . . Used . | . . . Hacking Detections 7 | . 6 1 Full Trace Events . | . . . Feedback Events . | . . . Feedback Blocked . | . . . Robot Schematics Acquired . | . . . Robots Built . | . . . Authchips . | . . . Time . | . . . Total Robot Build Rating . | . . . Part Schematics Acquired . | . . . Parts Built . | . . . Authchips . | . . . Time . | . . . Total Part Build Rating . | . . . Part Studies Acquired . | . . . Parts Repaired . | . . . Time . | . . . Parts Recycled . | . . . Recycled Matter . | . . . Retrieved Matter . | . . . Retrieved Components . | . . . Parts Scanalyzed . | . . . Part Schematics Acquired . | . . . Parts Damaged . | . . . Bothacking | -11 -10 -10 ------------ Run | Yrd Mat Min Used RIF Installer . | . . . Robots Hacked . | . . . Non-combat . | . . . Combat . | . . . Robot Hacks Applied . | . . . Relay Couplers Released . | . . . Fabnet Peak Effective % . | . . . Robots Rewired . | . . . Allies Hacked . | . . . Hacks Repelled . | . . . Allies | -11 -10 -10 -------- Run | Yrd Mat Min Total Allies . | . . . Largest Group . | . . . Highest-Rated Group . | . . . Highest-Rated Ally . | . . . Total Orders . | . . . Ally Attacks . | . . . Total Damage . | . . . Kills . | . . . Allies Corrupted . | . . . Allies Melted . | . . . X0-1V1 Amusement Gains 64 | . 24 40 Good Acts 5 | . 3 2 Bad Acts 6 | . 5 1 Intel | -11 -10 -10 ------- Run | Yrd Mat Min Active Infowar (turns) 724 | 27 697 . Seismic 724 | 27 697 . Robot Analysis Total . | . . . Derelict Logs Recovered 1 | . . 1 Drone Launches . | . . . Drone Recoveries . | . . . Exploration | -11 -10 -10 ------------- Run | Yrd Mat Min Turns Passed 2115 | 125 1357 633 Spaces Moved 1016 | 57 587 372 Core 7 | 7 . . Treads 954 | 50 538 366 Legs 1 | . . 1 Wheels 54 | . 49 5 Hover . | . . . Flight . | . . . Fastest Speed 50 | 50 160 110 Average Speed 161 | 151 163 159 Slowest Speed 200 | 160 200 190 Overloaded Moves . | . . . Propulsion Burnouts . | . . . Robots Hopped . | . . . Potential Cave-ins . | . . . Cave-ins Triggered . | . . . Exploration Rate (%) 60 | 4 94 84 Regions Visited 2 Branch Regions 1 Pre-discovered Areas . | . . . Known Exits Taken . | . . . Unknown Exits Taken 2 | 1 1 . Scrap Searched 1 | . . 1 Spaces Dug 2 | . . 2 Terrain Destroyed 2 | . . 2 Melee . | . . . Projectile 2 | . . 2 AOE . | . . . Terrain Rammed . | . . . Walls Destroyed . | . . . Machines Disabled . | . . . Actions | -11 -10 -10 --------- Run | Yrd Mat Min Total 1378 | 79 904 395 Wait 226 | . 223 3 Move 1014 | 56 586 372 Hop . | . . . Pick Up 27 | 9 17 1 Fast Attach 12 | 6 6 . Attach 4 | 1 1 2 Detach 2 | . 2 . Swap 11 | . 8 3 Drop 19 | . 17 2 Fire 63 | 7 44 12 Melee . | . . . Ram . | . . . Kick . | . . . Crush . | . . . Escape Stasis . | . . . Rewire . | . . . Trap . | . . . Miscellaneous . | . . . Route ------- -11/Scrapyard -10/Materials (discovered 5 exits: [*Mat x3] / *Min / [*Sub]) -10/Mines (discovered 3 exits: [*Mat x2] / [*Sub]) History --------- Turn | Location | Event 25 | -11/Scrapyard | Discovered new exit (range 15) 126 | -11/Scrapyard | Entered Materials 307 | -10/Materials | Build established: Mutant 543 | -10/Materials | Discovered new exit (range 13) 659 | -10/Materials | Discovered new exit (range 7) 811 | -10/Materials | Discovered new exit (range 6) 823 | -10/Materials | Prayed at D.C.S.S. Altar Unit 964 | -10/Materials | X0-1V1 foreshadows a heat wave 1027 | -10/Materials | Discovered new exit (range 10) 1230 | -10/Materials | X0-1V1 announced a LAN party 1246 | -10/Materials | Ambient heat levels rising (+10) 1277 | -10/Materials | Discovered new exit (range 7) 1428 | -10/Materials | Ambient heat levels rising (+10) 1483 | -10/Materials | Entered Mines 1484 | -10/Mines | Assembled infested the area 1523 | -10/Mines | Learned location of 2 exits from Materials 1587 | -10/Mines | Discovered new exit (range 14) 1593 | -10/Mines | Met a Derelict shopkeep closing up shop 1610 | -10/Mines | Discovered new exit (range 13) 1754 | -10/Mines | X0-1V1 activates XOMVISION 1757 | -10/Mines | X0-1V1 sent hostile S-10 Pest (x4) 1792 | -10/Mines | Ranged accuracy permanently improved by X0-1V1 (+8%) 1822 | -10/Mines | Discovered new exit (range 10) 2114 | -10/Mines | Core integrity fell below 50% 2116 | -10/Mines | Destroyed by D-53 Grenadier with Mini Grenade Launcher Last Messages --------------- 01984_ Acquired 23 matter. 01987_ System corrupted: Heat flow error (+298). 01995_ Searching scrap... 01995_ Found Grenade Launcher. 01995_ Found Lrg. Matter Pod. 01995_ Found Flight Unit. 01995_ Found 65 Matter. 01996_ Acquired 65 matter. 02021_ Connecting with Terminal... 02037_ System corrupted: Matter fused (-5). 02077_ System corrupted: Component data lost. 02107_ Lgt. Treads destroyed. 02107_ Lgt. EM Pulse Cannon destroyed. 02108_ The unstable cave ceiling collapses. 02109_ Lgt. Deuterium Engine destroyed. 02113_ The unstable cave ceiling collapses. 02113_ Wheel destroyed. 02113_ Lgt. EM Pulse Cannon destroyed. 02114_ X0-1V1 is amused. 02116_ X0-1V1 guffaws! Map ----- +----------------------------------------------------+ | ????????????????????????????# #???????? | | ??????????????????####??????######## ##???????? | | ?????????????????## ##????????????# #????????? | | ????????????????## ######???????# #???###### | | ???????????????## ##??????# ##### | | ???????????????# ######## ## ! ! | | ???????????????# ### ## ! ! | | ???????????????## ##?## ######## ! ! | | ????????????????## #???## ##?????#[ !!! | | ?????????????????# ##???## ##????#%%= | | ????????????????## #????## ##???#*[[* | | ????????????????# #????### # #??# ####### | | ????????????????# #????# ## ## #?#=#?????? | | ????????????????## ##?????# # ## ##=#?????? | | ???#####?????????####???????## ####=#?????? | | ??## #####???????????????## #?????? | | ??# ##??????????????### k " ### #?##### | | ??# ##?????????????##### ##?# ### | | ?## #?#######???????? # #??# | | ?# ### # ##??????### #??##### ### | | ?# ###?????## #??????# #?# | | ?# ## # #??????# ##?????# #?# | | ??# ### ###????# ##????# #?# | | ??## #?# ##??## #????# #?# | | ???## ### #### ##???# #?# | | ????### d @ u #???# #?# | | ??????## #??? ??? | | ???????# = d #?? ??? | | ???????## ### % ??? | | ????????## ##?## =### ##?? | | ?????????## ##???# ######???#??? | | ?????###### ##????# ##???????????? | | ?????# # ## ##?????# #????????????? | | ?????# #### #########?????? #????????????? | | ?????# #??#=!#?????????????? ????????????? | | ?????# #??# #????????????? #???????????? | | ?????# #### ]#????????????? ##???????????? | | ???### #T## #####????????# ###????????????? | | ???# #?????????# ##??????????????? | | ???# #?????????###????????????????? | | ???# """ """ """ #????????????????????????????? | | ???# """ """ """ #????????????????????????????? | | ???# """ """ """ #????????????????????????????? | | ???# #????????????????????????????? | | ???# """ """ """ #????????????????????????????? | | ???# """ """ """ #????????????????????????????? | | ???# """ """ """ #????????????????????????????? | | ???# #????????????????????????????? | | ???# #????????????????????????????? | | ???# #????????????????????????????? | +----------------------------------------------------+ Best States ------------- Heat Dissipation 25 Energy Generation 14 Energy Capacity 250 Matter Stores 645 Matter Capacity 700 Sight Range 19 Terrain Scan Density 10 Evasion (%) 40 Recoil Reduction 2 Item Schematics ----------------- None Robot Schematics ------------------ None Fabricated ------------ Nothing Repaired ---------- Nothing Studied --------- None Alien Tech Used ----------------- None Achievements -------------- None Challenges ------------ None Game ------ Seed MetaImprovedStatue Manual? 0 Play Time 00:31:36 Cumulative 147.1 hours Start 2026.06.22 @ 21:59:51 End 2026.06.23 @ 14:09:38 Sessions 3 Manual Loads 0 Difficulty Rogue Special Mode None Game No. 160 Rogue 160 Adventurer 0 Explorer 0 Win Type - Total 4 Types 4/0/0/0/0/0/0/0/0/0 Lore% 71 Gallery% 55 Achievement% 44 Wizard Run 0 Options --------- Layout 1 ASCII 0 Keyboard 1 Movement Vi Keybinds 0 Fullscreen 2 Font 24/Terminus Map View 50x35 Zoom Use 0% Tactical HUD 1 Map Filters NONE Filters NONE Steam 1 RUN: 5e6351a5-acc6-4b39-9a95-010db9d29543